fUST/lending_fUST_20240117
["ID","MTS","AMOUNT","RATE_DAILY","PERIOD"]
[311845752,1705458643453,-500.0,0.00030821,2]
[311845753,1705458643463,-500.0,0.00030821,2]
[311845754,1705458643472,-1372.94,0.00030821,2]
[311845755,1705458643481,-500.0,0.00030821,2]
[311845756,1705458643490,-500.0,0.00030821,2]
[311845757,1705458643501,-500.0,0.00030821,2]
[311845758,1705458643512,-500.0,0.00030821,2]
[311845759,1705458643521,-1590.82,0.00030821,2]
[311845760,1705458643531,-506.04587951,0.00030821,2]
[311845761,1705458643540,-1072.06,0.00030821,2]
[311845762,1705458643549,-519.01649096,0.00030821,2]
[311845763,1705458643558,-514.18,0.00030821,2]
[311845764,1705458643568,-540.14,0.00030821,2]
[311845765,1705458643598,-500.0,0.00030821,2]
[311845766,1705458643617,-885.83,0.00030821,2]
[311845767,1705458643627,-500.0,0.00030821,2]
[311845768,1705458643637,-500.0,0.00030821,2]
[311845769,1705458643648,-500.0,0.00030821,2]
[311845770,1705458643658,-500.0,0.00030821,2]
[311845771,1705458643667,-507.77091671,0.00030821,2]
[311845772,1705458643678,-646.2,0.00030821,2]
[311845773,1705458643687,-877.63,0.00030821,2]
[311845774,1705458643697,-1426.44,0.00030821,2]
[311845775,1705458643706,-1759.06,0.00030821,2]
[311845776,1705458643715,-2169.3,0.00030821,2]
[311845777,1705458643726,-619.60676546,0.00030821,2]
[311845778,1705458643736,-500.0,0.00030821,2]
[311845779,1705458643748,-500.0,0.00030821,2]
[311845780,1705458643758,-34771.51,0.00030821,2]
[311845781,1705458643768,-500.0,0.00030821,2]
[311845782,1705458643778,-639.83,0.00030821,2]
[311845783,1705458643789,-18690.25,0.00030821,2]
[311845784,1705458643799,-6979.45,0.00030821,2]
[311845785,1705458643808,-503.19,0.00030821,2]
[311845786,1705458643817,-500.0,0.00030821,2]
[311845787,1705458643827,-761.88,0.00030821,2]
[311845788,1705458643838,-500.0,0.00030821,2]
[311845789,1705458643847,-500.0,0.00030821,2]
[311845790,1705458643856,-500.0,0.00030821,2]
[311845791,1705458643865,-500.0,0.00030821,2]
[311845792,1705458643875,-500.0,0.00030821,2]
[311845793,1705458643884,-2555.96,0.00030821,2]
[311845794,1705458643894,-500.0,0.00030821,2]
[311845795,1705458643903,-500.0,0.00030821,2]
[311845796,1705458643912,-500.0,0.00030821,2]
[311845797,1705458643922,-7817.57,0.00030821,2]
[311845798,1705458643931,-829.78,0.00030821,2]
[311845799,1705458643942,-500.0,0.00030821,2]
[311845800,1705458643951,-503.88032041,0.00030821,2]
[311845801,1705458643960,-1489.95,0.00030821,2]
[311845802,1705458643971,-500.0,0.00030821,2]
[311845803,1705458643980,-500.0,0.00030821,2]
[311845804,1705458643988,-151.67322949,0.00030838,2]
[311845805,1705458643997,-500.0,0.00030868,2]
[311845806,1705458644009,-488.51613457,0.00030868,2]
[311845807,1705458644019,-531.17701106,0.00030868,2]
[311845808,1705458644028,-501.70956628,0.00030868,2]
[311845809,1705458644038,-500.0,0.00030868,2]
[311845810,1705458644048,-500.0,0.00030868,2]
[311845811,1705458644057,-1881.19,0.00030868,2]
[311845812,1705458644066,-3307.97,0.00030868,2]
[311845813,1705458644076,-540.39,0.00030868,2]
[311845814,1705458644086,-500.0,0.00030868,2]
[311845815,1705458644095,-613.50937689,0.00030868,2]
[311845816,1705458644105,-3268.8,0.00030868,2]
[311845817,1705458644114,-313.0,0.0003087,30]
[311845818,1705458644124,-313.0,0.0003088,30]
[311845819,1705458644134,-321.31633252,0.00030888,2]
[311845820,1705458644144,-2056.24,0.00030888,2]
[311845821,1705458644153,-500.0,0.00030888,2]
[311845822,1705458644162,-500.0,0.00030888,2]
[311845823,1705458644171,-729.8,0.00030888,2]
[311845824,1705458644181,-500.0,0.00030888,2]
[311845825,1705458644190,-500.0,0.00030888,2]
[311845826,1705458644199,-500.0,0.00030888,2]
[311845827,1705458644208,-500.0,0.00030889,2]
[311845828,1705458644217,-500.0,0.00030889,2]
[311845829,1705458644226,-500.0,0.00030889,2]
[311845831,1705458644236,-500.0,0.00030889,2]
[311845832,1705458644245,-1524.67,0.00030889,2]
[311845834,1705458644255,-500.0,0.00030889,2]
[311845836,1705458644265,-516.44,0.00030889,2]
[311845838,1705458644274,-500.0,0.00030889,2]
[311845840,1705458644283,-500.0,0.00030889,2]
[311845842,1705458644292,-500.0,0.00030889,2]
[311845844,1705458644301,-500.0,0.00030889,2]
[311845845,1705458644310,-500.0,0.00030889,2]
[311845847,1705458644319,-500.0,0.00030889,2]
[311845848,1705458644328,-500.0,0.00030889,2]
[311845850,1705458644337,-500.0,0.00030889,2]
[311845852,1705458644346,-500.75290415,0.00030889,2]
[311845853,1705458644355,-500.0,0.00030889,2]
[311845855,1705458644363,-500.0,0.00030889,2]
[311845857,1705458644373,-892.06,0.00030889,2]
[311845859,1705458644382,-500.0,0.00030889,2]
[311845861,1705458644391,-1000.0,0.00030889,2]
[311845862,1705458644400,-500.0,0.00030889,2]
[311845863,1705458644410,-500.0,0.00030889,2]
[311845864,1705458644419,-500.0,0.00030889,2]
[311845865,1705458644428,-500.0,0.00030889,2]
[311845867,1705458644437,-500.0,0.00030889,2]
[311845869,1705458644446,-500.0,0.00030889,2]
[311845871,1705458644455,-500.0,0.00030889,2]
[311845872,1705458644464,-500.0,0.00030889,2]
[311845874,1705458644473,-500.0,0.00030889,2]
[311845876,1705458644482,-500.0,0.00030889,2]
[311845877,1705458644491,-505.48723603,0.00030889,2]
[311845878,1705458644501,-500.0,0.00030889,2]
[311845880,1705458644511,-500.0,0.00030889,2]
[311845882,1705458644520,-825.29,0.00030889,2]
[311845883,1705458644529,-500.0,0.00030889,2]
[311845884,1705458644538,-500.0,0.00030889,2]
[311845885,1705458644547,-503.96191033,0.00030889,2]
[311845887,1705458644557,-624.82989269,0.00030889,2]
[311845889,1705458644566,-500.98477589,0.00030889,2]
[311845890,1705458644575,-1000.0,0.00030889,2]
[311845891,1705458644584,-500.0,0.00030889,2]
[311845892,1705458644593,-500.0,0.00030889,2]
[311845893,1705458644602,-500.0,0.00030889,2]
[311845894,1705458644611,-500.0,0.00030889,2]
[311845895,1705458644620,-497.37968749,0.00030889,2]
[311845896,1705458644629,-500.0,0.00030889,2]
[311845897,1705458644639,-500.0,0.00030889,2]
[311845898,1705458644648,-658.08,0.00030889,2]
[311845899,1705458644657,-500.0,0.00030889,2]
[311845901,1705458644666,-1009.85496789,0.00030889,2]
[311845903,1705458644675,-838.23,0.00030889,2]
[311845904,1705458644685,-500.0,0.00030889,2]
[311845905,1705458644694,-500.0,0.00030889,2]
[311845906,1705458644703,-500.0,0.00030889,2]
[311845907,1705458644713,-500.0,0.00030889,2]
[311845908,1705458644722,-500.0,0.00030889,2]
[311845909,1705458644731,-500.0,0.00030889,2]
[311845910,1705458644741,-503.76227161,0.00030889,2]
[311845911,1705458644751,-500.0,0.00030889,2]
[311845912,1705458644760,-500.0,0.00030889,2]
[311845913,1705458644769,-500.0,0.00030889,2]
[311845914,1705458644778,-503.96709031,0.00030889,2]
[311845915,1705458644787,-502.05087581,0.00030889,2]
[311845916,1705458644796,-500.0,0.00030889,2]
[311845917,1705458644805,-500.0,0.00030889,2]
[311845918,1705458644814,-500.0,0.00030889,2]
[311845919,1705458644824,-500.0,0.00030889,2]
[311845920,1705458644833,-463.55515549,0.00030889,2]
[311845921,1705458644842,-500.0,0.00030889,2]
[311845922,1705458644851,-500.0,0.00030889,2]
[311845923,1705458644860,-1204.6,0.00030889,2]
[311845924,1705458644870,-500.0,0.00030889,2]
[311845925,1705458644879,-500.0,0.00030889,2]
[311845926,1705458644888,-500.0,0.00030889,2]
[311845927,1705458644898,-500.0,0.00030889,2]
[311845928,1705458644907,-531.37845023,0.00030889,2]
[311845929,1705458644916,-500.0,0.00030889,2]
[311845930,1705458644926,-500.0,0.00030889,2]
[311845931,1705458644938,-185.10745494,0.00030889,2]
[311845932,1705458644947,-2918.11,0.00030889,2]
[311845933,1705458644956,-429.64655054,0.00030889,2]
[311845934,1705458644965,-502.08286688,0.00030889,2]
[311845935,1705458644974,-500.0,0.00030889,2]
[311845936,1705458644983,-4939.74,0.00030889,2]
[311845937,1705458644993,-500.0,0.00030889,2]
[311845938,1705458645002,-500.0,0.00030889,2]
[311845939,1705458645013,-502.66986973,0.00030889,2]
[311845940,1705458645023,-500.0,0.00030889,2]
[311845941,1705458645032,-328.78610997,0.00030889,2]
[311845942,1705458645042,-500.0,0.00030889,2]
[311845943,1705458645051,-460.60200132,0.0003089,4]
[311845944,1705458645061,-1713.18851226,0.0003089,4]
[311845945,1705458645070,-1200.0,0.0003089,4]
[311845946,1705458645079,-282.97323289,0.0003089,3]
[311845947,1705458645158,-154.95351395,0.0003089,2]
[311845948,1705458645169,-313.0,0.0003089,30]
[311845949,1705458645179,-155.486691,0.0003089,4]
[311845950,1705458645188,-157.7634756,0.0003089,4]
[311845951,1705458645197,-1695.68940595,0.0003089,4]
[311845952,1705458645206,-155.72007396,0.0003089,4]
[311845953,1705458645216,-166.9831078,0.0003089,4]
[311845954,1705458645225,-156.56906536,0.0003089,4]
[311845955,1705458645234,-401.11760744,0.00030898,4]
[311845956,1705458645243,-465.40496867,0.00030898,4]
[311845957,1705458645253,-155.26212004,0.00030898,4]
[311845958,1705458645263,-1488.51354654,0.00030898,4]
[311845959,1705458645273,-689.6115994,0.00030898,4]
[311845960,1705458645283,-1664.16668102,0.00030898,2]
[311845961,1705458645292,-555.68986056,0.00030898,4]
[311845962,1705458645301,-606.98621052,0.00030898,4]
[311845963,1705458645310,-151.0,0.00030899,2]
[311845964,1705458645319,-1276.77818863,0.00030899,4]
[311845965,1705458645328,-500.0,0.00030899,2]
[311845966,1705458645337,-500.0,0.00030899,2]
[311845967,1705458645347,-504.7664544,0.00030899,2]
[311845968,1705458645356,-500.0,0.00030899,2]
[311845969,1705458645365,-500.0,0.00030899,2]
[311845970,1705458645375,-251.0898344,0.00030899,2]
[311845971,1705458645384,-502.57805441,0.00030899,2]
[311845972,1705458645393,-500.0,0.00030899,2]
[311845973,1705458645402,-500.0,0.00030899,2]
[311845974,1705458645411,-850.46,0.00030899,2]
[311845975,1705458645420,-500.0,0.00030899,2]
[311845976,1705458645429,-500.0,0.00030899,2]
[311845977,1705458645438,-500.0,0.00030899,2]
[311845978,1705458645447,-500.0,0.00030899,2]
[311845979,1705458645455,-500.0,0.00030899,2]
[311845980,1705458645465,-500.0,0.00030899,2]
[311845981,1705458645474,-500.0,0.00030899,2]
[311845982,1705458645483,-426.73870933,0.00030899,2]
[311845995,1705458646721,-500.0,0.00030136,2]
[311845996,1705458646732,-500.0,0.00030273,2]
[311845997,1705458646742,-500.0,0.0003041,2]
[311845998,1705458646751,-500.0,0.00030547,2]
[311845999,1705458646760,-500.0,0.00030547,2]
[311846000,1705458646770,-500.0,0.00030684,2]
[311846001,1705458646779,-500.0,0.00030684,2]
[311846002,1705458646788,-496.38632802,0.00030821,2]
[311846003,1705458646820,-3.61367198,0.00030821,2]
[311846004,1705458646830,-359.53632802,0.00030821,2]
[311846005,1705458646841,-140.46367198,0.00030821,2]
[311846006,1705458646850,-329.7518327,0.00030887,4]
[311846011,1705458646954,-2759.54,0.00030674,3]
[311846013,1705458646963,-170.2481673,0.00030887,4]
[311846015,1705458646972,-500.0,0.00030887,4]
[311846017,1705458646982,-395.73838505,0.00030887,4]
[311846135,1705459837852,-154.98450155,0.00027734,4]
[311846137,1705459837862,-223.57784006,0.00028788,2]
[311846139,1705459837871,-155.0,0.00029273,2]
[311846141,1705459837880,-738.41271042,0.00029385,5]
[311846143,1705459837889,-1083.8422606,0.00029385,5]
[311846145,1705459837898,-2513.8188978,0.00029385,5]
[311846147,1705459837908,-22812.96786646,0.00029999,2]
[311846149,1705459837916,-3849.42742831,0.0003,2]
[311846151,1705459837926,-1167.04211613,0.00030133,4]
[311846153,1705459837935,-1276.77818863,0.00030134,4]
[311846155,1705459837944,-606.98621052,0.00030134,4]
[311846157,1705459837954,-555.68986056,0.00030134,4]
[311846159,1705459837963,-1664.16668102,0.00030134,2]
[311846161,1705459837972,-689.6115994,0.00030134,4]
[311846163,1705459837981,-155.26212004,0.00030134,4]
[311846165,1705459837990,-1488.51354654,0.00030134,4]
[311846167,1705459837999,-465.40496867,0.00030134,4]
[311846169,1705459838008,-401.11760744,0.00030134,4]
[311846171,1705459838018,-361.16356305,0.00030134,2]
[311846173,1705459838027,-242.89725676,0.00030134,4]
[311846174,1705459838036,-978.8111705,0.00030134,4]
[311846176,1705459838045,-400.53090856,0.00030134,4]
[311846177,1705459838056,-3742.63964853,0.00030134,4]
[311846178,1705459838066,-500.0,0.00030135,2]
[311846179,1705459838075,-500.0,0.00030136,2]
[311846180,1705459838086,-500.0,0.00030136,2]
[311846182,1705459838095,-500.0,0.00030136,2]
[311846183,1705459838104,-500.0,0.00030136,2]
[311846185,1705459838113,-500.0,0.00030136,2]
[311846186,1705459838122,-500.0,0.00030136,2]
[311846188,1705459838132,-500.0,0.00030136,2]
[311846190,1705459838141,-500.0,0.00030136,2]
[311846191,1705459838151,-500.0,0.00030136,2]
[311846192,1705459838160,-850.46,0.00030136,2]
[311846193,1705459838169,-500.0,0.00030136,2]
[311846194,1705459838179,-500.0,0.00030136,2]
[311846195,1705459838187,-213.20973447,0.00030136,2]
[311846196,1705459838199,-286.79026553,0.00030136,2]
[311846197,1705459838208,-247.20926344,0.00030136,2]
[311846198,1705459838221,-256.16360607,0.00030136,2]
[311846199,1705459838230,-500.0,0.00030136,2]
[311846200,1705459838240,-500.0,0.00030136,2]
[311846201,1705459838249,-500.0,0.00030136,2]
[311846202,1705459838258,-94.19328713,0.00030136,2]
[311846211,1705459840797,-326.65817886,0.00030135,2]
[311846258,1705459845815,-383.61450309,0.00030133,2]
[311846288,1705460848123,-154.98450155,0.00021999,4]
[311846289,1705460848145,-1956.28392915,0.00021999,2]
[311846363,1705461037981,-152.02968984,0.00021889,2]
[311846365,1705461037991,-13252.36131516,0.00021999,2]
[311846367,1705461038001,-1262.07740071,0.00021999,2]
[311846369,1705461038011,-1275.10173555,0.00021999,2]
[311846371,1705461038021,-342.81948955,0.00021999,2]
[311846373,1705461038030,-3958.0,0.00022,2]
[311846375,1705461038039,-154.98450155,0.00024197,4]
[311846377,1705461038049,-200.0,0.00024198,7]
[311846379,1705461038059,-280.0,0.00026618,15]
[311846381,1705461038068,-180.0019125,0.00027014,2]
[311846383,1705461038081,-185.25415827,0.00027019,2]
[311846385,1705461038090,-1422.93753695,0.0002712,2]
[311846387,1705461038100,-527.90723213,0.00028036,2]
[311846389,1705461038110,-6012.10338151,0.00028627,2]
[311846391,1705461038119,-6366.63413092,0.00028963,3]
[311846393,1705461038129,-582.10417759,0.00028963,3]
[311846395,1705461038139,-155.0,0.00029136,2]
[311846397,1705461038148,-153.0,0.00029178,2]
[311846399,1705461038157,-153.0,0.00029178,2]
[311846401,1705461038166,-153.0,0.00029178,2]
[311846403,1705461038176,-153.0,0.00029178,2]
[311846405,1705461038185,-307.743877,0.00029241,2]
[311846407,1705461038195,-391.0,0.00029279,15]
[311846409,1705461038204,-153.5644331,0.00029315,2]
[311846411,1705461038213,-306.5267178,0.00029315,2]
[311846413,1705461038223,-153.0,0.00029315,2]
[311846415,1705461038232,-153.0,0.00029315,2]
[311846417,1705461038242,-153.0,0.00029315,2]
[311846419,1705461038253,-153.0,0.00029315,2]
[311846421,1705461038263,-198.957615,0.00029315,2]
[311846423,1705461038272,-153.0,0.00029315,2]
[311846425,1705461038282,-153.0,0.00029315,2]
[311846427,1705461038291,-198.957615,0.00029315,2]
[311846429,1705461038301,-153.0,0.00029315,2]
[311846431,1705461038310,-198.957615,0.00029378,2]
[311846433,1705461038320,-153.0,0.00029378,2]
[311846435,1705461038331,-306.5245184,0.00029378,2]
[311846437,1705461038340,-153.0,0.00029378,2]
[311846439,1705461038350,-198.957615,0.00029378,2]
[311846441,1705461038360,-198.957615,0.00029378,2]
[311846443,1705461038369,-153.0,0.00029378,2]
[311846445,1705461038379,-1612.63704947,0.00029385,4]
[311846447,1705461038389,-302.1556656,0.00029385,4]
[311846449,1705461038398,-624.94719609,0.00029478,2]
[311846451,1705461038409,-153.0,0.00029478,2]
[311846454,1705461038418,-153.0,0.00029478,2]
[311846456,1705461038427,-153.0,0.00029589,2]
[311846457,1705461038437,-153.0,0.00029589,2]
[311846460,1705461038447,-153.0,0.00029589,2]
[311846462,1705461038456,-153.0,0.00029589,2]
[311846464,1705461038466,-306.0,0.00029652,2]
[311846466,1705461038475,-181.76759752,0.0002977,2]
[311846468,1705461038485,-181.76759752,0.00029847,2]
[311846470,1705461038495,-154.27370264,0.00029909,2]
[311846472,1705461038504,-181.76759752,0.00029957,2]
[311846474,1705461038514,-191.28775148,0.0003,4]
[311846476,1705461038525,-12274.60250735,0.0003,2]
[311846478,1705461038534,-507.1853477,0.0003,3]
[311846480,1705461038544,-3759.06405,0.0003,2]
[311846482,1705461038553,-205.45531267,0.0003,2]
[311846484,1705461038563,-251.0,0.0003,2]
[311846486,1705461038575,-152.0,0.0003,2]
[311846489,1705461038584,-243.87038791,0.0003,4]
[311846491,1705461038594,-1054.16078813,0.0003,4]
[311846492,1705461038605,-368.79624368,0.0003,6]
[311846495,1705461038615,-154.98450155,0.0003001,2]
[311846496,1705461038627,-231.66534855,0.00030011,4]
[311846499,1705461038636,-201.06264934,0.00030012,4]
[311846501,1705461038646,-189.91315258,0.00030036,2]
[311846503,1705461038655,-151.67322949,0.00030076,2]
[311846505,1705461038665,-819.7768725,0.00030097,2]
[311846507,1705461038676,-2910.159785,0.000301,2]
[311846509,1705461038685,-3147.37,0.00030103,3]
[311846511,1705461038696,-3776.85,0.00030113,3]
[311846512,1705461038707,-4532.22,0.00030123,3]
[311846513,1705461038716,-282.97323289,0.00030133,3]
[311846515,1705461038726,-1200.0,0.00030133,4]
[311846517,1705461038736,-154.98450155,0.00030133,2]
[311846519,1705461038745,-195.12427019,0.00030133,4]
[311846521,1705461038754,-164.3622139,0.00030133,4]
[311846522,1705461038764,-155.28086153,0.00030134,4]
[311846523,1705461038773,-156.55077009,0.00030134,4]
[311846524,1705461038784,-178.61031425,0.00030134,4]
[311846525,1705461038793,-157.68731987,0.00030134,4]
[311846526,1705461038803,-168.59437659,0.00030134,4]
[311846527,1705461038813,-155.20838123,0.00030134,4]
[311846528,1705461038822,-230.97793484,0.00030134,2]
[311846529,1705461038832,-155.22573287,0.00030134,2]
[311846530,1705461038843,-323.19676634,0.00030134,4]
[311846531,1705461038852,-155.86327089,0.00030134,4]
[311846532,1705461038862,-426.97656388,0.00030134,2]
[311846533,1705461038872,-238.8837402,0.00030134,10]
[311846534,1705461038967,-464.01008605,0.00030134,4]
[311846535,1705461038977,-641.54247479,0.00030134,4]
[311846536,1705461038986,-688.6762337,0.00030134,4]
[311846537,1705461038996,-808.41785246,0.00030134,4]
[311846538,1705461039005,-156.56906536,0.00030134,4]
[311846539,1705461039015,-601.86641083,0.00030134,2]
[311846540,1705461039024,-162.14956299,0.00030134,4]
[311846541,1705461039034,-155.39263865,0.00030135,4]
[311846542,1705461039044,-209.32671645,0.00030135,4]
[311846543,1705461039054,-200.22735332,0.00030135,4]
[311846544,1705461039063,-151.0,0.00030136,2]
[311846545,1705461039074,-151.0,0.00030136,2]
[311846546,1705461039084,-173.939081,0.00030136,2]
[311846547,1705461039093,-151.0,0.00030136,2]
[311846548,1705461039102,-151.0,0.00030136,2]
[311846549,1705461039112,-151.0,0.00030136,2]
[311846550,1705461039121,-151.0,0.00030136,2]
[311846551,1705461039130,-263.16273004,0.00030136,2]
[311846552,1705461039140,-500.0,0.00030136,2]
[311846553,1705461039149,-500.0,0.00030136,2]
[311846554,1705461039160,-500.0,0.00030136,2]
[311846555,1705461039169,-500.0,0.00030136,2]
[311846556,1705461039178,-500.0,0.00030136,2]
[311846557,1705461039187,-500.0,0.00030136,2]
[311846558,1705461039196,-500.0,0.00030136,2]
[311846559,1705461039205,-500.0,0.00030136,2]
[311846560,1705461039215,-500.0,0.00030136,2]
[311846561,1705461039224,-500.0,0.00030136,2]
[311846562,1705461039233,-500.0,0.00030136,2]
[311846563,1705461039242,-500.0,0.00030136,2]
[311846564,1705461039251,-500.0,0.00030136,2]
[311846565,1705461039261,-500.0,0.00030136,2]
[311846566,1705461039271,-500.0,0.00030136,2]
[311846567,1705461039280,-150.0,0.00030136,2]
[311846568,1705461039289,-500.0,0.00030136,4]
[311846569,1705461039298,-603.91,0.00030136,2]
[311846570,1705461039308,-500.0,0.00030136,2]
[311846571,1705461039317,-500.0,0.00030136,2]
[311846572,1705461039327,-500.0,0.00030136,2]
[311846573,1705461039336,-500.0,0.00030136,2]
[311846574,1705461039345,-501.64411783,0.00030136,2]
[311846575,1705461039355,-502.08286688,0.00030136,2]
[311846576,1705461039365,-500.0,0.00030136,2]
[311846577,1705461039374,-500.0,0.00030136,2]
[311846578,1705461039383,-500.0,0.00030136,2]
[311846579,1705461039392,-502.66986973,0.00030136,2]
[311846580,1705461039402,-500.0,0.00030136,2]
[311846581,1705461039411,-500.0,0.00030136,2]
[311846582,1705461039420,-328.78610997,0.00030136,2]
[311846583,1705461039430,-198.56564252,0.00030136,2]
[311846584,1705461039439,-1000.0,0.00030136,2]
[311846585,1705461039448,-500.0,0.00030136,2]
[311846586,1705461039458,-500.0,0.00030136,2]
[311846587,1705461039467,-500.0,0.00030136,2]
[311846588,1705461039477,-500.0,0.00030136,2]
[311846589,1705461039487,-798.45,0.00030136,2]
[311846590,1705461039496,-1000.0,0.00030136,2]
[311846591,1705461039506,-500.0,0.00030136,2]
[311846592,1705461039515,-500.86771326,0.00030136,2]
[311846593,1705461039525,-500.0,0.00030136,2]
[311846594,1705461039535,-500.0,0.00030136,2]
[311846595,1705461039544,-508.86405407,0.00030136,2]
[311846596,1705461039553,-500.0,0.00030136,2]
[311846597,1705461039562,-212.17035358,0.00030136,2]
[311846598,1705461039572,-500.0,0.00030136,2]
[311846599,1705461039582,-2147.42,0.00030136,2]
[311846600,1705461039591,-500.0,0.00030136,2]
[311846601,1705461039601,-500.0,0.00030136,2]
[311846602,1705461039611,-502.98829358,0.00030136,2]
[311846603,1705461039620,-500.0,0.00030136,2]
[311846604,1705461039630,-500.0,0.00030136,2]
[311846605,1705461039639,-378.96489924,0.00030136,2]
[311846606,1705461039649,-500.0,0.00030136,2]
[311846607,1705461039659,-500.0,0.00030136,2]
[311846608,1705461039668,-500.0,0.00030136,2]
[311846609,1705461039677,-500.0,0.00030136,2]
[311846610,1705461039687,-500.0,0.00030136,2]
[311846611,1705461039699,-169.28365267,0.00030136,2]
[311846612,1705461039709,-500.0,0.00030136,2]
[311846613,1705461039718,-500.0,0.00030136,2]
[311846614,1705461039728,-500.0,0.00030136,2]
[311846615,1705461039738,-875.33,0.00030136,2]
[311846616,1705461039749,-500.0,0.00030136,2]
[311846617,1705461039757,-500.0,0.00030136,2]
[311846618,1705461039767,-500.0,0.00030136,2]
[311846619,1705461039777,-500.0,0.00030136,2]
[311846620,1705461039786,-500.0,0.00030136,2]
[311846621,1705461039795,-500.0,0.00030136,2]
[311846622,1705461039805,-500.0,0.00030136,2]
[311846623,1705461039814,-500.0,0.00030136,2]
[311846624,1705461039823,-500.0,0.00030136,2]
[311846625,1705461039834,-537.51645537,0.00030136,2]
[311846626,1705461039843,-500.90966369,0.00030136,2]
[311846627,1705461039852,-500.0,0.00030136,2]
[311846628,1705461039862,-500.0,0.00030136,2]
[311846629,1705461039871,-500.0,0.00030136,2]
[311846630,1705461039881,-500.0,0.00030136,2]
[311846631,1705461039890,-500.0,0.00030136,2]
[311846632,1705461039899,-502.99980085,0.00030136,2]
[311846633,1705461039908,-500.0,0.00030136,2]
[311846634,1705461039917,-467.34306252,0.00030136,2]
[311846635,1705461039927,-500.0,0.00030136,2]
[311846636,1705461039937,-1665.08,0.00030136,2]
[311846637,1705461039947,-500.0,0.00030136,2]
[311846638,1705461039956,-500.0,0.00030136,2]
[311846639,1705461039965,-500.0,0.00030136,2]
[311846640,1705461039974,-500.0,0.00030136,2]
[311846641,1705461039994,-500.0,0.00030136,2]
[311846642,1705461040004,-500.0,0.00030136,2]
[311846643,1705461040014,-500.0,0.00030136,2]
[311846644,1705461040024,-569.61165838,0.00030136,2]
[311846645,1705461040035,-500.0,0.00030136,2]
[311846646,1705461040044,-500.0,0.00030136,2]
[311846647,1705461040054,-500.0,0.00030136,2]
[311846648,1705461040064,-574.68,0.00030136,2]
[311846649,1705461040073,-500.0,0.00030136,2]
[311846650,1705461040083,-500.0,0.00030136,2]
[311846651,1705461040093,-251.0898344,0.00030136,2]
[311846652,1705461040103,-500.0,0.00030136,2]
[311846653,1705461040112,-500.0,0.00030136,2]
[311846654,1705461040123,-500.0,0.00030136,2]
[311846655,1705461040133,-500.0,0.00030136,2]
[311846656,1705461040143,-500.0,0.00030136,2]
[311846657,1705461040152,-500.0,0.00030136,2]
[311846658,1705461040162,-500.0,0.00030136,2]
[311846659,1705461040172,-500.0,0.00030136,2]
[311846660,1705461040182,-500.0,0.00030136,2]
[311846661,1705461040192,-500.0,0.00030136,2]
[311846662,1705461040299,-500.0,0.00030136,2]
[311846663,1705461040309,-500.0,0.00030136,2]
[311846664,1705461040318,-500.0,0.00030136,2]
[311846665,1705461040328,-503.79040743,0.00030136,2]
[311846666,1705461040338,-500.0,0.00030136,2]
[311846667,1705461040347,-500.0,0.00030136,2]
[311846668,1705461040356,-500.0,0.00030136,2]
[311846669,1705461040365,-500.0,0.00030136,2]
[311846670,1705461040375,-500.0,0.00030136,2]
[311846671,1705461040385,-500.0,0.00030136,2]